bitfinex-derivatives/quotes_BTCF0:USTF0_20260113
["timestamp","ask_amount","ask_price","bid_price","bid_amount"]
[1768345239255,0.09525086,96058.0,96004.0,0.375]
[1768345239256,0.18759876,96040.0,96015.0,0.09372]
[1768345239449,0.04692873,96039.0,96005.0,0.12786513]
[1768345239649,0.04692873,96039.0,95964.0,0.04168571]
[1768345239650,0.09372,96038.0,96000.0,0.09372]
[1768345239845,0.09372,96037.0,95985.0,0.0975289]
[1768345240146,0.104137,96036.0,95974.0,0.09372]
[1768345240343,0.09372,96035.0,95970.0,0.09376]
[1768345240548,0.09372,96035.0,95957.0,0.0975289]
[1768345240747,0.0923479,96019.0,95958.0,0.09376]
[1768345240957,0.0923479,96017.0,95959.0,0.09376]
[1768345241265,0.0923479,96010.0,95948.0,0.09376]
[1768345241452,0.0923479,96006.0,95949.0,0.09999173]
[1768345241758,0.0923479,95999.0,95949.0,0.09999173]
[1768345241963,0.0923479,95996.0,95949.0,0.09999173]
[1768345242146,0.0923479,95995.0,95949.0,0.09999173]
[1768345242551,0.09376,95994.0,95951.0,0.09999173]
[1768345242754,0.09243619,95998.0,95953.0,0.09999173]
[1768345242960,0.09243619,95998.0,95958.0,0.19752063]
[1768345243153,0.08905455,96029.0,95970.0,0.09999173]
[1768345243464,0.05006057,96030.0,95950.0,0.29835487]
[1768345243465,0.08379834,96027.0,95980.0,0.20334123]
[1768345243763,0.08379834,96025.0,95990.0,0.20334123]
[1768345244062,0.75604,96036.0,95990.0,0.20334123]
[1768345244063,0.08379834,96023.0,95990.0,0.20334123]
[1768345244451,0.08379834,96023.0,95990.0,0.19812055]
[1768345244651,0.08379834,96023.0,95986.0,0.09376]
[1768345245059,0.08379834,96023.0,95990.0,0.20334123]
[1768345245357,0.0923479,96022.0,95990.0,0.20334123]
[1768345245564,0.0923479,96022.0,95986.0,0.09376]
[1768345245565,0.08479191,96021.0,95986.0,0.09376]
[1768345245749,0.0923479,96020.0,95987.0,0.09376]
[1768345246458,0.0923479,96020.0,95990.0,0.20334123]
[1768345246660,0.0923479,96020.0,96000.0,0.20334123]
[1768345247060,4.876e-05,96024.0,96000.0,0.07339817]
[1768345247253,4.876e-05,96024.0,96001.0,0.0938]
[1768345248457,4.876e-05,96024.0,96001.0,0.16719817]
[1768345248665,4.876e-05,96024.0,96001.0,0.0938]
[1768345249152,4.876e-05,96024.0,96010.0,0.20334123]
[1768345249351,4.876e-05,96024.0,96001.0,0.16719817]
[1768345250057,4.876e-05,96024.0,96002.0,0.0938]
[1768345250556,4.876e-05,96024.0,96000.0,0.07339817]
[1768345250557,4.876e-05,96024.0,96000.0,0.20334123]
[1768345250759,4.876e-05,96024.0,96001.0,0.0938]
[1768345251267,4.876e-05,96024.0,96001.0,0.16719817]
[1768345251456,4.876e-05,96024.0,96002.0,0.0938]
[1768345251658,4.876e-05,96024.0,96003.0,0.0938]
[1768345252566,4.876e-05,96024.0,96000.0,0.20334123]
[1768345252771,0.0923479,96019.0,95998.0,0.0938]
[1768345252960,0.0923479,96017.0,95990.0,0.07338958]
[1768345253268,0.0923479,96017.0,95991.0,0.0938]
[1768345254766,0.0923479,96017.0,95983.0,0.0975289]
[1768345255067,0.0923479,96017.0,95991.0,0.0938]
[1768345256060,0.0923479,96015.0,95985.0,0.0938]
[1768345256261,0.0923479,96015.0,95975.0,0.07338958]
[1768345256460,0.0923479,96015.0,95967.0,0.0938]
[1768345256770,0.73052,96018.0,95967.0,0.0938]
[1768345256771,0.0923479,96013.0,95967.0,0.0938]
[1768345257670,0.0923479,96013.0,95962.0,0.0975289]
[1768345257968,0.0923479,96013.0,95953.0,0.0975289]
[1768345257969,0.0923479,96009.0,95953.0,0.0975289]
[1768345258173,0.0923479,95999.0,95954.0,0.0938]
[1768345258466,0.0923479,95997.0,95942.0,0.0975289]
[1768345258667,0.0923479,95989.0,95943.0,0.0938]
[1768345258863,0.0923479,95987.0,95934.0,0.18929888]
[1768345259065,0.0923479,95987.0,95951.0,0.0975289]
[1768345259363,0.0923479,95987.0,95952.0,0.1913289]
[1768345259865,0.0923479,95987.0,95952.0,0.26472707]
[1768345260256,0.0923479,95987.0,95956.0,0.0975289]
[1768345260458,0.09239666,95988.0,95959.0,0.0975289]
[1768345260662,0.09239666,95988.0,95960.0,0.0938]
[1768345260867,0.09239666,95988.0,95953.0,0.07339817]
[1768345261067,0.0923479,95988.0,95954.0,0.0938]
[1768345261377,0.09193365,95988.0,95953.0,0.07339817]
[1768345261761,0.09193365,95988.0,95954.0,0.0938]
[1768345262668,0.09193365,95988.0,95960.0,0.20334123]
[1768345262863,0.0112044,96069.0,95983.0,0.0975289]
[1768345263062,0.0938,96074.0,96023.0,0.0975289]
[1768345263263,0.0923479,96063.0,96027.0,0.0975289]
[1768345263579,0.0923479,96063.0,96027.0,0.09523758]
[1768345264361,0.0923479,96063.0,96030.0,0.20334123]
[1768345264570,0.0923479,96063.0,96030.0,0.30333296]
[1768345265371,0.0923479,96063.0,96030.0,0.09999173]
[1768345265673,0.0923479,96063.0,96031.0,0.09273321]
[1768345265868,0.0923479,96063.0,96032.0,0.09273321]
[1768345266062,0.0923479,96063.0,96027.0,0.07339817]
[1768345266666,0.0923479,96063.0,96028.0,0.0938]
[1768345266868,0.0923479,96063.0,96028.0,0.18653321]
[1768345267064,0.0923479,96063.0,96029.0,0.09273321]
[1768345267266,0.0923479,96063.0,96031.0,0.09273321]
[1768345267461,0.0923479,96063.0,96032.0,0.09273321]
[1768345267662,0.0923479,96063.0,96033.0,0.09273321]
[1768345267863,0.0938,96072.0,96034.0,0.09273321]
[1768345268168,0.09544206,96061.0,96033.0,0.0938]
[1768345268872,0.09544206,96061.0,96037.0,0.06818729]
[1768345269289,0.010411,96088.0,96037.0,0.06818729]
[1768345269290,0.05031217,96081.0,96050.0,0.20334123]
[1768345269458,0.05031217,96081.0,96055.0,0.18451894]
[1768345269658,0.05031217,96081.0,96057.0,0.06818729]
[1768345269972,0.05031217,96081.0,96058.0,0.09273321]
[1768345270662,0.0938,96091.0,96058.0,0.09273321]
[1768345271060,0.0938,96091.0,96060.0,0.09273321]
[1768345271463,0.0938,96091.0,96066.0,0.06818729]
[1768345271665,0.0938,96091.0,96067.0,0.0938]
[1768345271863,0.09153226,96096.0,96067.0,0.18653321]
[1768345272064,0.0938,96099.0,96068.0,0.09273321]
[1768345272270,0.0938,96099.0,96070.0,0.09273321]
[1768345272572,0.09153226,96122.0,96083.0,0.09273321]
[1768345272879,0.09153226,96122.0,96090.0,0.09273321]
[1768345273173,0.09900113,96133.0,96092.0,0.09178573]
[1768345273174,0.0024961,96131.0,96092.0,0.09178573]
[1768345273472,0.0024961,96131.0,96093.0,0.09273321]
[1768345273676,0.09303226,96123.0,96094.0,0.0938]
[1768345273864,0.09303226,96123.0,96095.0,0.0938]
[1768345274367,0.0015,96123.0,96096.0,0.18451894]
[1768345274672,0.0015,96123.0,96097.0,0.18451894]
[1768345274872,0.0015,96123.0,96101.0,0.18451894]
[1768345275173,0.09376,96154.0,96123.0,0.09273321]
[1768345275370,0.09376,96154.0,96119.0,0.05448154]
[1768345275371,0.18529226,96163.0,96125.0,0.09273321]
[1768345275772,0.18529226,96163.0,96124.0,0.18554573]
[1768345275773,0.18529226,96163.0,96126.0,0.18451894]
[1768345276071,0.00228775,96165.0,96128.0,0.18451894]
[1768345276274,0.09376,96163.0,96137.0,0.09273321]
[1768345276468,0.09153226,96189.0,96143.0,0.18451894]
[1768345276772,0.37744632,96225.0,96137.0,0.46972]
[1768345276773,0.09376,96208.0,96172.0,0.18451894]
[1768345276968,0.09376,96208.0,96173.0,0.2862009]
[1768345277166,0.09376,96208.0,96173.0,0.09376]
[1768345277369,0.09154178,96202.0,96171.0,0.05069451]
[1768345277567,0.0015,96202.0,96172.0,0.09746914]
[1768345277767,0.0015,96202.0,96173.0,0.09497176]
[1768345277979,0.0015,96202.0,96174.0,0.09746914]
[1768345278464,0.0015,96202.0,96089.0,0.09176998]
[1768345278465,0.010401,96180.0,96136.0,0.09746914]
[1768345278772,0.09004178,96149.0,96103.0,0.09746914]
[1768345278962,0.09004178,96161.0,96135.0,0.05069451]
[1768345279162,0.09004178,96159.0,96113.0,0.09746914]
[1768345279364,0.11789528,96157.0,96113.0,0.09746914]
[1768345279566,0.09004178,96154.0,96113.0,0.09746914]
[1768345279973,0.09372,96153.0,96121.0,0.05069451]
[1768345280173,0.09004178,96154.0,96121.0,0.05069451]
[1768345280370,0.09004178,96154.0,96121.0,0.14816365]
[1768345280563,0.09372,96153.0,96121.0,0.14816365]
[1768345280768,0.09372,96152.0,96121.0,0.14816365]
[1768345280969,0.09004178,96166.0,96122.0,0.09746914]
[1768345281175,0.09004178,96164.0,96122.0,0.09746914]
[1768345281568,0.09004178,96162.0,96122.0,0.09746914]
[1768345282375,0.96496178,96161.0,96122.0,0.09746914]
[1768345282679,0.09004178,96159.0,96122.0,0.09746914]
[1768345283874,0.11181999,96159.0,96121.0,0.05069451]
[1768345284079,0.09004178,96153.0,96113.0,0.09746914]
[1768345284478,0.010402,96170.0,96099.0,0.09372]
[1768345284479,0.09004178,96165.0,96122.0,0.09746914]
[1768345284670,0.09004178,96163.0,96122.0,0.09746914]
[1768345284869,0.18376178,96162.0,96122.0,0.09746914]
[1768345285072,0.09004178,96161.0,96122.0,0.09746914]
[1768345285780,0.09004178,96159.0,96122.0,0.09746914]
[1768345285984,0.09372,96158.0,96131.0,0.09746914]
[1768345286182,0.09372,96157.0,96132.0,0.09746914]
[1768345286382,0.09372,96156.0,96132.0,0.09746914]
[1768345286582,0.09372,96155.0,96121.0,0.09746914]
[1768345286881,0.09004178,96154.0,96121.0,0.09746914]
[1768345287081,0.09372,96153.0,96125.0,0.09746914]
[1768345287287,0.09372,96152.0,96127.0,0.09746914]
[1768345287474,0.09004178,96174.0,96129.0,0.09746914]
[1768345287475,0.09372,96151.0,96129.0,0.09746914]
[1768345287671,0.09372,96150.0,96129.0,0.09746914]
[1768345288082,0.09372,96150.0,96117.0,0.1924409]
[1768345288486,0.09372,96150.0,96118.0,0.15175709]
[1768345288697,0.09372,96150.0,96119.0,0.09746914]
[1768345289984,0.09328368,96147.0,96108.0,0.09746914]
[1768345290171,0.09004178,96143.0,96108.0,0.09746914]
[1768345290367,0.09004178,96139.0,96098.0,0.09746914]
[1768345290568,0.09004178,96167.0,96122.0,0.09746914]
[1768345290772,0.0032419,96158.0,96122.0,0.09746914]
[1768345290975,0.09004178,96145.0,96101.0,0.09746914]
[1768345291181,0.09004178,96139.0,96101.0,0.09746914]
[1768345291389,0.09372,96144.0,96101.0,0.09746914]
[1768345291390,0.09372,96138.0,96111.0,0.09746914]
[1768345291683,0.09372,96137.0,96111.0,0.09746914]
[1768345291885,0.09372,96136.0,96101.0,0.1924409]
[1768345292087,0.09004178,96135.0,96101.0,0.1924409]
[1768345292287,0.09004178,96135.0,96091.0,0.09746914]
[1768345292581,0.09004178,96119.0,96081.0,0.09746914]
[1768345292784,0.09004178,96117.0,96071.0,0.09746914]
[1768345293084,0.09004178,96109.0,96066.0,0.00011762]
[1768345293585,0.10032312,96109.0,96066.0,0.00011762]
[1768345293983,0.01028134,96109.0,96072.0,0.09746914]
[1768345294282,0.01028134,96109.0,96066.0,0.00011762]
[1768345294283,0.09372,96108.0,96083.0,0.09746914]
[1768345294486,0.09372,96107.0,96083.0,0.09746914]
[1768345294674,0.09004178,96119.0,96085.0,0.09746914]
[1768345294873,0.09004178,96119.0,96086.0,0.18820117]
[1768345295181,0.09672531,96129.0,96089.0,0.09073203]
[1768345295383,0.09372,96128.0,96092.0,0.18624103]
[1768345295584,0.09672531,96129.0,96094.0,0.09073203]
[1768345295779,0.09672531,96143.0,96097.0,0.095509]
[1768345295980,0.34752,96142.0,96106.0,0.095509]
[1768345296181,0.04069962,96152.0,96109.0,0.09073203]
[1768345296483,0.09372,96151.0,96116.0,0.095509]
[1768345297088,0.10192536,96153.0,96116.0,0.095509]
[1768345297283,0.00520005,96153.0,96121.0,0.095509]
[1768345297787,0.09372,96152.0,96121.0,0.095509]
[1768345298287,0.10431501,96143.0,96105.0,0.00228917]
[1768345298582,0.09672531,96131.0,96105.0,0.00228917]
[1768345298786,0.09672531,96129.0,96105.0,0.00228917]
[1768345299691,0.09372,96128.0,96105.0,0.00228917]
[1768345299987,0.09672531,96129.0,96105.0,0.00228917]
[1768345300290,0.09372,96128.0,96105.0,0.00228917]
[1768345300490,0.09672531,96127.0,96105.0,0.00228917]
[1768345300788,0.10973306,96127.0,96088.0,0.095509]
[1768345301090,0.10973306,96117.0,96077.0,0.095509]
[1768345301386,0.09672531,96109.0,96066.0,0.09562662]
[1768345301577,0.09672531,96107.0,96066.0,0.09562662]
[1768345301778,0.09672531,96105.0,96066.0,0.09562662]
[1768345302081,0.09672531,96103.0,96066.0,0.09562662]
[1768345304087,0.09372,96104.0,96066.0,0.09562662]
[1768345304088,0.01152217,96102.0,96076.0,0.05428795]
[1768345304290,0.01152217,96102.0,96066.0,0.00011762]
[1768345304776,0.20334123,96100.0,96066.0,0.00011762]
[1768345304981,0.20334123,96100.0,96046.0,0.09176998]
[1768345304982,0.20334123,96080.0,96045.0,0.18727898]
[1768345305185,0.20334123,96070.0,96037.0,0.09176998]
[1768345305385,0.09372,96069.0,96035.0,0.095509]
[1768345305884,7.621e-05,96068.0,96035.0,0.095509]
[1768345306087,7.621e-05,96068.0,96037.0,0.095509]
[1768345306290,7.621e-05,96068.0,96039.0,0.095509]
[1768345306291,0.09372,96067.0,96039.0,0.095509]
[1768345306485,7.621e-05,96068.0,96041.0,0.095509]
[1768345306683,0.09372,96066.0,96041.0,0.095509]
[1768345307290,7.621e-05,96068.0,96032.0,0.09073203]
[1768345307489,7.621e-05,96068.0,96033.0,0.095509]
[1768345307490,0.09672531,96066.0,96033.0,0.095509]
[1768345307789,0.09372,96065.0,96035.0,0.095509]
[1768345308090,0.09372,96065.0,96019.0,0.09372]
[1768345308091,0.09775451,96062.0,96025.0,0.095509]
[1768345308286,0.09672531,96058.0,96025.0,0.095509]
[1768345308486,0.09775451,96054.0,96015.0,0.095509]
[1768345308793,0.09672531,96052.0,96015.0,0.095509]
[1768345309187,0.09775451,96052.0,96015.0,0.095509]
[1768345309691,0.29484,96051.0,96015.0,0.095509]
[1768345309885,0.09672531,96050.0,96015.0,0.095509]
[1768345311195,0.10066656,96050.0,96015.0,0.095509]
[1768345311494,0.09672531,96042.0,96005.0,0.095509]
[1768345311988,0.09672531,96042.0,96002.0,0.09073203]
[1768345311989,0.09672531,96036.0,95998.0,0.09372]
[1768345312194,0.09443756,96034.0,95999.0,0.095509]
[1768345312386,0.09837881,96034.0,95999.0,0.095509]
[1768345312791,0.00011227,96033.0,95999.0,0.095509]
[1768345312985,0.00011227,96033.0,95990.0,0.00471616]
[1768345312986,0.010416,96032.0,95990.0,0.00471616]
[1768345313289,0.09376,96035.0,95970.0,0.05723506]
[1768345313290,0.00394125,96019.0,95970.0,0.05723506]
[1768345313491,0.00310612,96006.0,95970.0,0.05723506]
[1768345313685,0.00310612,96001.0,95959.0,0.095509]
[1768345313885,0.00160612,95999.0,95956.0,0.0015]
[1768345314086,0.00160612,95993.0,95956.0,0.0015]
[1768345314295,0.09672531,95988.0,95956.0,0.0015]
[1768345314491,0.09672531,95986.0,95956.0,0.0015]
[1768345314890,7.47e-05,95987.0,95956.0,0.097009]
[1768345315096,0.09376,95986.0,95956.0,0.097009]
[1768345315489,0.09376,95985.0,95956.0,0.097009]
[1768345317398,0.09672531,95984.0,95956.0,0.0015]
[1768345318398,0.09376,95985.0,95957.0,0.095509]
[1768345318695,0.09376,95985.0,95881.0,0.18267325]
[1768345318696,0.18745734,95953.0,95881.0,0.18267325]
[1768345318900,0.18745734,95949.0,95864.0,0.0938]
[1768345319095,0.09672531,95947.0,95886.0,0.0938]
[1768345319493,0.0938,95946.0,95886.0,0.0938]
[1768345319695,0.0938,95945.0,95886.0,0.0938]
[1768345319986,0.00010696,95944.0,95886.0,0.0938]
[1768345320499,0.09672531,95956.0,95886.0,0.0938]
[1768345320802,0.0938,95955.0,95911.0,0.18624103]
[1768345320999,0.0938,95954.0,95920.0,0.095509]
[1768345321195,0.0938,95954.0,95921.0,0.095509]
[1768345321396,8.268e-05,95953.0,95921.0,0.095509]
[1768345321596,8.268e-05,95953.0,95921.0,0.18624103]
[1768345322599,8.268e-05,95953.0,95921.0,0.095509]
[1768345323801,0.09680799,95953.0,95921.0,0.095509]
[1768345324594,0.09680799,95953.0,95912.0,0.0938]
[1768345324885,0.09680799,95953.0,95911.0,0.095509]
[1768345324886,0.09672531,95951.0,95911.0,0.095509]
[1768345326191,0.09966041,95950.0,95911.0,0.095509]
[1768345326390,0.09137006,95949.0,95906.0,0.09384]
[1768345326586,0.09966041,95948.0,95904.0,0.09754599]
[1768345326801,0.0938,95954.0,95895.0,0.00229419]
[1768345326802,0.09966041,95944.0,95895.0,0.00229419]
[1768345326998,0.09966041,95939.0,95895.0,0.09984018]
[1768345327199,0.18521006,95938.0,95895.0,0.00229419]
[1768345327394,0.18834018,95936.0,95895.0,0.00229419]
[1768345327593,0.18834018,95933.0,95895.0,0.00229419]
[1768345327789,0.18834018,95925.0,95895.0,0.00229419]
[1768345327994,0.18834018,95922.0,95895.0,0.00229419]
[1768345328191,0.18846424,95921.0,95895.0,0.00229419]
[1768345328396,0.17933185,95917.0,95873.0,0.00521523]
[1768345328601,0.09966041,95913.0,95873.0,0.00521523]
[1768345328794,0.17461569,95911.0,95873.0,0.00521523]
[1768345328992,0.09966041,95909.0,95873.0,0.00521523]
[1768345329195,0.09966041,95907.0,95873.0,0.00521523]
[1768345329496,0.09966041,95907.0,95876.0,0.09904599]
[1768345329694,0.09384,95906.0,95876.0,0.19748474]
[1768345329993,0.09966041,95938.0,95892.0,0.19598474]
[1768345330196,0.09384,95937.0,95913.0,0.09754599]
[1768345330397,0.09966041,95950.0,95899.0,0.09754599]
[1768345330398,0.09384,95936.0,95899.0,0.09754599]
[1768345330598,0.09388,95935.0,95900.0,0.09754599]
[1768345330794,0.09388,95934.0,95900.0,0.09754599]
[1768345331205,0.09976428,95933.0,95900.0,0.09754599]
[1768345332297,0.09966041,95932.0,95897.0,0.09388]
[1768345332803,0.09966041,95932.0,95890.0,0.09754599]
[1768345333103,0.09966041,95932.0,95891.0,0.09754599]
[1768345333403,0.09966041,95932.0,95892.0,0.09754599]
[1768345334208,0.09966041,95931.0,95892.0,0.09754599]
[1768345334705,0.09388,95930.0,95892.0,0.09754599]
[1768345335097,0.19354041,95930.0,95892.0,0.09754599]
[1768345335297,0.09966041,95929.0,95892.0,0.09754599]
[1768345338207,0.09388,95928.0,95896.0,0.09536203]
[1768345338405,0.09388,95928.0,95897.0,0.09339173]
[1768345340109,0.00010387,95933.0,95898.0,0.18875376]
[1768345340404,0.09388,95932.0,95915.0,0.09339173]
[1768345340597,0.00010387,95933.0,95915.0,0.09339173]
[1768345340798,0.09388,95932.0,95915.0,0.09339173]
[1768345341512,0.09388,95931.0,95915.0,0.09339173]
[1768345342110,0.00010387,95933.0,95915.0,0.09339173]
[1768345342601,0.09398387,95933.0,95915.0,0.09339173]
[1768345343298,0.09398387,95933.0,95903.0,0.09339173]
[1768345343503,0.09398387,95933.0,95904.0,0.09536203]
[1768345343707,0.09398387,95933.0,95905.0,0.09339173]
[1768345343912,0.09398387,95933.0,95906.0,0.09339173]
[1768345344325,0.09398387,95933.0,95907.0,0.09339173]
[1768345344512,0.09717532,95968.0,95911.0,0.09339173]
[1768345344711,0.09717532,95968.0,95914.0,0.09536203]
[1768345344712,0.09388,95966.0,95914.0,0.09536203]
[1768345345006,0.60581532,95978.0,95939.0,0.09339173]
[1768345345207,0.09717532,95978.0,95939.0,0.09339173]
[1768345345407,0.19743462,96018.0,95954.0,0.18875376]
[1768345345408,0.08701762,96018.0,95954.0,0.18875376]
[1768345345608,0.09388,96028.0,95972.0,0.18875376]
[1768345345806,0.09388,96028.0,95955.0,0.09388]
[1768345345807,0.09717532,96028.0,95993.0,0.00520871]
[1768345346007,0.09717532,96028.0,95955.0,0.22153965]
[1768345346008,0.09833272,96010.0,95961.0,0.09536203]
[1768345346314,0.02663989,96027.0,95961.0,0.09536203]
[1768345346315,0.09717532,96002.0,95962.0,0.09388]
[1768345346512,0.09717532,96000.0,95962.0,0.09388]
[1768345346717,0.02663989,95998.0,95963.0,0.09339173]
[1768345346912,0.02663989,95998.0,95965.0,0.09339173]
[1768345347410,0.09717532,95992.0,95951.0,0.09339173]
[1768345347905,0.09833272,95989.0,95941.0,0.09339173]
[1768345348107,0.09833272,95986.0,95943.0,0.09339173]
[1768345348417,0.09717532,95975.0,95942.0,0.09388]
[1768345348716,0.09388,95974.0,95942.0,0.09388]
[1768345349618,0.02663989,95970.0,95943.0,0.09339173]
[1768345349808,0.12051989,95970.0,95943.0,0.09339173]
[1768345351421,0.12051989,95970.0,95942.0,0.09388]
[1768345351422,0.09388,95970.0,95945.0,0.09536203]
[1768345351630,0.18784,95992.0,95947.0,0.09536203]
[1768345351631,0.09388,95979.0,95947.0,0.09536203]
[1768345351920,0.09388,95982.0,95950.0,0.09339173]
[1768345352125,0.09388,95988.0,95954.0,0.09339173]
[1768345352320,0.02663989,95995.0,95956.0,0.09339173]
[1768345352513,0.09388,95989.0,95956.0,0.09339173]
[1768345353825,0.08867237,95989.0,95956.0,0.09339173]
[1768345354326,0.08867237,95989.0,95957.0,0.09339173]
[1768345354517,0.11531226,95989.0,95958.0,0.09339173]
[1768345354724,0.11531226,95989.0,95960.0,0.09339173]
[1768345354923,0.11531226,95989.0,95961.0,0.09536203]
[1768345355123,0.11531226,95989.0,95962.0,0.09109924]
[1768345356019,0.02663989,95989.0,95963.0,0.09109924]
[1768345356225,0.02663989,95989.0,95964.0,0.09109924]
[1768345356421,0.09388,96010.0,95973.0,0.18391804]
[1768345356727,0.09388,96010.0,95981.0,0.0928188]
[1768345356920,0.09388,96010.0,95983.0,0.09109924]
[1768345357226,0.02663989,96005.0,95983.0,0.09109924]
[1768345357627,0.09388,96018.0,95982.0,0.09388]
[1768345357628,0.09388,96018.0,95990.0,0.09109924]
[1768345358526,0.09388,96018.0,95990.0,0.18391804]
[1768345358726,0.09384,96027.0,95994.0,0.0928188]
[1768345359027,0.09384,96040.0,96008.0,0.09109924]
[1768345359231,0.09384,96040.0,96010.0,0.09109924]
[1768345359526,0.09384,96040.0,95988.0,0.05707989]
[1768345359527,0.09427259,96039.0,95998.0,0.09109924]
[1768345359727,0.09427259,96037.0,95999.0,0.09384]
[1768345359920,0.09427259,96036.0,95999.0,0.09384]
[1768345360120,0.09427259,96035.0,95999.0,0.09384]
[1768345361228,0.09427259,96035.0,95999.0,0.09109924]
[1768345361419,0.09427259,96035.0,96000.0,0.09384]
[1768345361624,0.09427259,96035.0,96001.0,0.09384]
[1768345361923,0.09384,96046.0,96033.0,0.00520654]
[1768345362731,0.09911831,96041.0,96011.0,0.09384]
[1768345362926,0.09427259,96038.0,96009.0,0.05684336]
[1768345363122,0.09427259,96036.0,96005.0,0.09384]
[1768345363427,0.09427259,96032.0,95989.0,0.09109924]
[1768345363630,0.1933909,96024.0,95990.0,0.09384]
[1768345363823,0.09427259,96022.0,95990.0,0.09384]
[1768345364022,0.23916531,96092.0,95990.0,0.09384]
[1768345364023,0.09427259,96073.0,96015.0,0.18391804]
[1768345364222,0.1064186,96080.0,96028.0,0.18391804]
[1768345364430,0.09427259,96081.0,96040.0,0.09109924]
[1768345364630,0.09911831,96080.0,96041.0,0.09384]
[1768345364931,0.1064186,96071.0,96042.0,0.104128]
[1768345365431,0.1064186,96071.0,96043.0,0.104128]
[1768345365632,0.1064186,96071.0,96041.0,0.09384]
[1768345365633,0.1064186,96071.0,96042.0,0.104128]
[1768345365928,0.09427259,96061.0,96014.0,0.09384]
[1768345366130,0.09427259,96049.0,96015.0,0.09384]
[1768345366430,0.09427259,96045.0,96009.0,0.09384]
[1768345366733,0.09427259,96037.0,96005.0,0.09384]
[1768345366922,0.09427259,96035.0,96005.0,0.09384]
[1768345367326,0.09384,96036.0,96007.0,0.09109924]
[1768345367631,0.09427259,96070.0,96025.0,0.09109924]
[1768345367825,0.0938,96072.0,96041.0,0.09109924]
[1768345368130,0.1064186,96064.0,96044.0,0.09109924]
[1768345368331,0.09427259,96090.0,96052.0,0.09109924]
[1768345368529,0.09427259,96090.0,96054.0,0.09109924]
[1768345368726,0.09427259,96086.0,96041.0,0.09109924]
[1768345368929,0.09427259,96086.0,96042.0,0.0938]
[1768345369229,0.09427259,96085.0,96042.0,0.0938]
[1768345369425,0.09427259,96085.0,96043.0,0.0938]
[1768345369625,0.09427259,96085.0,96041.0,0.09109924]
[1768345369830,0.09427259,96085.0,96042.0,0.0938]
[1768345370031,0.09427259,96085.0,96053.0,0.00520546]
[1768345370524,0.1064186,96087.0,96053.0,0.0963047]
[1768345370730,0.0015,96091.0,96053.0,0.0963047]
[1768345370731,0.1064186,96083.0,96054.0,0.0928188]
[1768345370927,0.1064186,96085.0,96063.0,0.09109924]
[1768345371130,0.0015,96091.0,96063.0,0.09109924]
[1768345371428,0.1064186,96083.0,96053.0,0.00520546]
[1768345371625,0.09427259,96082.0,96053.0,0.00520546]
[1768345371933,0.09427259,96082.0,96054.0,0.0938]
[1768345373221,0.0938,96081.0,96053.0,0.00520546]
[1768345373426,0.09427259,96080.0,96053.0,0.00520546]
[1768345373934,0.1064186,96072.0,96053.0,0.00520546]
[1768345375626,0.20069119,96072.0,96053.0,0.00520546]
[1768345375830,0.09427259,96071.0,96053.0,0.00520546]
[1768345376033,0.09427259,96071.0,96045.0,0.0938]
[1768345376331,0.09427259,96071.0,96035.0,0.09109924]
[1768345376531,0.09427259,96071.0,96036.0,0.0938]
[1768345376733,0.20069119,96071.0,96037.0,0.09109924]
[1768345377236,0.20069119,96071.0,96038.0,0.0938]
[1768345378022,0.20069119,96071.0,96039.0,0.09109924]
[1768345378219,0.19548681,96071.0,96039.0,0.09109924]
[1768345378418,0.19548681,96071.0,96041.0,0.09109924]
[1768345378419,0.1064186,96071.0,96041.0,0.09109924]
[1768345378617,0.0015,96107.0,96053.0,0.0928188]
[1768345378820,0.0015,96107.0,96071.0,0.09109924]
[1768345379026,0.0015,96107.0,96072.0,0.18485924]
[1768345380028,0.0015,96107.0,96073.0,0.09109924]
[1768345380736,0.0015,96107.0,96074.0,0.09109924]
[1768345381327,0.09911831,96104.0,96053.0,0.09109924]
[1768345381525,0.09427259,96101.0,96055.0,0.09109924]
[1768345381726,0.09427259,96099.0,96061.0,0.09109924]
[1768345381918,0.0015,96107.0,96090.0,0.18391804]
[1768345382121,0.09376,96131.0,96091.0,0.18485924]
[1768345382331,0.09911831,96121.0,96079.0,0.18391804]
[1768345382522,0.01031218,96129.0,96049.0,0.0274543]
[1768345382523,0.09427259,96114.0,96069.0,0.09109924]
[1768345382723,0.09427259,96103.0,96069.0,0.09109924]
[1768345382928,0.09427259,96102.0,96070.0,0.09376]
[1768345383831,0.09427259,96102.0,96070.0,0.18485924]
[1768345385730,0.09934859,96098.0,96050.0,0.09659245]
[1768345385930,0.09538823,96097.0,96051.0,0.09376]
[1768345386131,0.09538823,96095.0,96051.0,0.09376]
[1768345386331,0.09538823,96093.0,96051.0,0.09376]
[1768345386536,0.09934859,96092.0,96052.0,0.09376]
[1768345386835,0.010409,96109.0,96052.0,0.09376]
[1768345386836,0.09538823,96087.0,96052.0,0.09376]
[1768345387029,0.010408,96117.0,96052.0,0.09376]
[1768345387030,0.09538823,96102.0,96062.0,0.09659245]
[1768345387236,0.09376,96101.0,96064.0,0.09659245]
[1768345387731,0.09376,96101.0,96065.0,0.09659245]
[1768345387932,0.09376,96101.0,96067.0,0.09659245]
[1768345388131,0.09376,96101.0,96068.0,0.09659245]
[1768345388337,0.09376,96100.0,96069.0,0.09659245]
[1768345389834,0.09538823,96099.0,96066.0,0.09376]
[1768345390036,0.09538823,96099.0,96059.0,0.09659245]
[1768345390037,0.09538823,96098.0,96067.0,0.09376]
[1768345390436,0.09538823,96098.0,96059.0,0.09659245]
[1768345390741,0.09538823,96089.0,96048.0,0.09659245]
[1768345390938,0.09934859,96086.0,96049.0,0.09376]
[1768345391132,0.09538823,96084.0,96049.0,0.09376]
[1768345391940,0.09538823,96084.0,96048.0,0.09659245]
[1768345392139,0.09538823,96083.0,96049.0,0.09376]
[1768345392641,0.09538823,96083.0,96050.0,0.09659245]
[1768345393546,0.09538823,96083.0,96050.0,0.29986771]
[1768345393743,0.09538823,96083.0,96051.0,0.09659245]
[1768345393938,0.09538823,96077.0,96041.0,0.0274543]
[1768345394144,0.09934859,96055.0,96033.0,0.0274543]
[1768345394330,0.09018602,96050.0,96015.0,0.03660574]
[1768345394639,0.09018602,96050.0,96011.0,0.09376]
[1768345394640,0.09934859,96048.0,96012.0,0.09376]
[1768345394947,0.09376,96047.0,96013.0,0.09659245]
[1768345396041,0.09934859,96068.0,96030.0,0.29986771]
[1768345396243,0.114708,96114.0,96030.0,0.29986771]
[1768345396244,0.09934859,96089.0,96033.0,0.09659245]
[1768345396543,0.010408,96113.0,96041.0,0.09659245]
[1768345396544,0.09538823,96078.0,96041.0,0.09659245]
[1768345396746,0.20327526,96080.0,96039.0,0.09376]
[1768345396747,0.09538823,96075.0,96039.0,0.09376]